[Event "NJSK 2024 A"]
[Site "Groningen, Netherlands"]
[Date "2024.05.03"]
[Round "9.1"]
[White "Slagboom, Leandro"]
[Black "Bakija, Alan"]
[Result "1-0"]
[TimeControl "90min/40moves + 30min + 30sec/move"]
[WhiteElo "2326"]
[BlackElo "2101"]

1. Nf3 {[%clk 00:05:04]} {[%emt 00:00:03]} d6 {[%clk 00:05:04]} {[%emt
00:00:03]} 2. d4 {[%clk 00:05:05]} {[%emt 00:00:01]} Nf6 {[%clk 00:05:05]}
{[%emt 00:00:01]} 3. c4 {[%clk 00:05:07]} {[%emt 00:00:01]} g6 {[%clk
00:04:57]} {[%emt 00:00:11]} 4. Nc3 {[%clk 00:05:09]} {[%emt 00:00:01]} Bf5
{[%clk 00:05:00]} {[%emt 00:00:01]} 5. Nh4 {[%clk 00:04:47]} {[%emt 00:00:24]}
Bd7 {[%clk 00:04:57]} {[%emt 00:00:07]} 6. e4 {[%clk 00:04:39]} {[%emt
00:00:10]} e5 {[%clk 00:04:57]} {[%emt 00:00:03]} 7. Nf3 {[%clk 00:04:39]}
{[%emt 00:00:03]} Bg7 {[%clk 00:04:47]} {[%emt 00:00:13]} 8. Be2 {[%clk
00:04:27]} {[%emt 00:00:15]} O-O {[%clk 00:04:42]} {[%emt 00:00:07]} 9. O-O
{[%clk 00:04:14]} {[%emt 00:00:17]} exd4 {[%clk 00:04:36]} {[%emt 00:00:09]} 10.
Nxd4 {[%clk 00:04:16]} {[%emt 00:00:01]} Re8 {[%clk 00:04:39]} 11. f3 {[%clk
00:04:12]} {[%emt 00:00:07]} c6 {[%emt 00:00:04]} 12. Kh1 {[%clk 00:04:02]}
{[%emt 00:00:10]} Na6 {[%clk 00:04:35]} {[%emt 00:00:08]} 13. Bf4 {[%clk
00:03:53]} {[%emt 00:00:12]} Qc7 {[%clk 00:04:32]} {[%emt 00:00:06]} 14. Nb3
{[%clk 00:03:33]} {[%emt 00:00:24]} Re6 {[%clk 00:03:49]} {[%emt 00:00:46]} 15.
c5 {[%clk 00:03:34]} {[%emt 00:00:02]} Ne8 {[%clk 00:03:51]} {[%emt 00:00:01]}
16. Bc4 {[%clk 00:03:27]} {[%emt 00:00:10]} Rd8 {[%clk 00:03:28]} {[%emt
00:00:26]} 17. Bxe6 {[%clk 00:02:34]} {[%emt 00:00:56]} Bxe6 {[%clk 00:03:30]}
18. cxd6 {[%clk 00:02:34]} {[%emt 00:00:04]} Nxd6 {[%clk 00:03:32]} {[%emt
00:00:01]} 19. Qe1 {[%clk 00:01:37]} {[%emt 00:00:59]} Qe7 {[%clk 00:03:28]}
{[%emt 00:00:07]} 20. Qg3 {[%clk 00:01:35]} {[%emt 00:00:05]} Nc4 {[%clk
00:03:26]} {[%emt 00:00:05]} 21. Bg5 {[%clk 00:01:25]} {[%emt 00:00:13]} f6
{[%clk 00:03:18]} {[%emt 00:00:11]} 22. Bf4 {[%clk 00:01:07]} {[%emt 00:00:21]}
Nxb2 {[%clk 00:03:11]} {[%emt 00:00:09]} 23. Rac1 {[%clk 00:01:05]} {[%emt
00:00:06]} Nd3 {[%clk 00:03:00]} {[%emt 00:00:14]} 24. Rcd1 {[%clk 00:01:04]}
{[%emt 00:00:04]} Nab4 {[%clk 00:02:47]} {[%emt 00:00:16]} 25. Nc1 {[%clk
00:00:56]} {[%emt 00:00:11]} Qc5 {[%clk 00:02:24]} {[%emt 00:00:26]} 26. Nxd3
{[%clk 00:00:36]} {[%emt 00:00:23]} Nxd3 {[%clk 00:02:11]} {[%emt 00:00:16]} 27.
Nd5 {[%clk 00:00:26]} {[%emt 00:00:13]} Nxf4 {[%clk 00:01:16]} {[%emt
00:00:58]} 28. Nxf4 {[%clk 00:00:25]} {[%emt 00:00:03]} Rxd1 {[%clk 00:01:16]}
{[%emt 00:00:04]} 29. Rxd1 {[%clk 00:00:28]} Bxa2 {[%clk 00:01:17]} {[%emt
00:00:01]} 30. h4 {[%clk 00:00:27]} {[%emt 00:00:04]} Qe7 {[%clk 00:00:50]}
{[%emt 00:00:30]} 31. Qf2 {[%clk 00:00:27]} {[%emt 00:00:03]} Bf7 {[%clk
00:00:22]} {[%emt 00:00:32]} 32. Qxa7 {[%clk 00:00:29]} {[%emt 00:00:01]} Qc7
{[%clk 00:00:24]} {[%emt 00:00:01]} 33. Ne2 {[%clk 00:00:17]} {[%emt 00:00:14]}
f5 {[%clk 00:00:07]} {[%emt 00:00:20]} 34. Qa8+ {[%clk 00:00:18]} {[%emt
00:00:03]} Bf8 {[%clk 00:00:09]} {[%emt 00:00:01]} 35. Rd8 {[%clk 00:00:16]}
{[%emt 00:00:05]} Qe7 {[%clk 00:00:11]} 36. g3 {[%clk 00:00:05]} {[%emt
00:00:14]} fxe4 {[%clk 00:00:13]} 37. f4 {[%clk 00:00:05]} {[%emt 00:00:04]} e3
{[%clk 00:00:09]} {[%emt 00:00:08]} 38. Kh2 {[%clk 00:00:07]} Kg7 {[%clk
00:00:04]} {[%emt 00:00:08]} 39. Rb8 {[%clk 00:00:09]} {[%emt 00:00:01]} Qc5
{[%clk 00:00:05]} {[%emt 00:00:02]} 40. Qxb7 {[%clk 00:00:08]} {[%emt
00:00:04]} Qc2 {[%clk 00:00:06]} {[%emt 00:00:03]} 41. Qb2+ {[%clk 00:00:06]}
{[%emt 00:00:04]} Qxb2 {[%clk 00:00:07]} {[%emt 00:00:02]} 42. Rxb2 {[%clk
00:00:08]} {[%emt 00:00:01]} Bd5 {[%clk 00:00:08]} {[%emt 00:00:02]} 43. Rc2
{[%clk 00:00:06]} {[%emt 00:00:06]} Be7 {[%clk 00:00:04]} {[%emt 00:00:07]} 44.
Kg1 {[%clk 00:00:07]} {[%emt 00:00:01]} Bd8 {[%clk 00:00:06]} {[%emt 00:00:01]}
45. Kf1 {[%clk 00:00:05]} {[%emt 00:00:06]} Bb6 {[%clk 00:00:07]} {[%emt
00:00:02]} 46. Rb2 {[%clk 00:00:06]} {[%emt 00:00:01]} Bc5 {[%clk 00:00:08]}
{[%emt 00:00:01]} 47. Rc2 {[%clk 00:00:07]} {[%emt 00:00:04]} Bb6 {[%clk
00:00:10]} {[%emt 00:00:01]} 48. Rb2 {[%clk 00:00:05]} {[%emt 00:00:04]} Bc5
{[%clk 00:00:12]} {[%emt 00:00:01]} 49. Rb7+ {[%clk 00:00:06]} {[%emt
00:00:02]} Kh6 {[%clk 00:00:00]} {[%emt 00:00:11]} {time} 1-0

[Event "NJSK 2024 A"]
[Site "Groningen, Netherlands"]
[Date "2024.05.03"]
[Round "10.1"]
[White "Slagboom, Leandro"]
[Black "Bakija, Alan"]
[Result "1-0"]
[TimeControl "90min/40moves + 30min + 30sec/move"]
[WhiteElo "2326"]
[BlackElo "2101"]

1. Nf3 {[%clk 00:04:05]} {[%emt 00:00:01]} d5 {[%clk 00:04:59]} {[%emt
00:00:08]} 2. b3 {[%clk 00:04:07]} {[%emt 00:00:01]} Nf6 {[%clk 00:04:59]}
{[%emt 00:00:02]} 3. Bb2 {[%clk 00:04:09]} {[%emt 00:00:01]} c6 {[%clk
00:05:01]} {[%emt 00:00:01]} 4. g3 {[%clk 00:04:08]} {[%emt 00:00:03]} Bf5
{[%clk 00:05:02]} {[%emt 00:00:01]} 5. Bg2 {[%clk 00:04:10]} {[%emt 00:00:02]}
h6 {[%clk 00:05:02]} {[%emt 00:00:04]} 6. d3 {[%clk 00:04:11]} {[%emt
00:00:01]} e6 {[%clk 00:05:04]} {[%emt 00:00:01]} 7. O-O {[%clk 00:04:11]}
{[%emt 00:00:03]} Be7 {[%clk 00:05:06]} {[%emt 00:00:01]} 8. Nbd2 {[%clk
00:04:11]} {[%emt 00:00:03]} Bh7 {[%clk 00:05:08]} {[%emt 00:00:01]} 9. Re1
{[%clk 00:04:05]} {[%emt 00:00:09]} O-O {[%clk 00:05:10]} {[%emt 00:00:01]} 10.
e4 {[%clk 00:04:05]} {[%emt 00:00:04]} dxe4 {[%clk 00:05:01]} {[%emt 00:00:12]}
11. dxe4 {[%clk 00:04:02]} {[%emt 00:00:05]} a5 {[%clk 00:04:51]} {[%emt
00:00:13]} 12. a3 {[%clk 00:04:01]} {[%emt 00:00:04]} Qc7 {[%clk 00:04:48]}
{[%emt 00:00:06]} 13. Ne5 {[%clk 00:03:47]} {[%emt 00:00:17]} Nbd7 {[%clk
00:04:46]} {[%emt 00:00:04]} 14. Nxd7 {[%clk 00:03:39]} {[%emt 00:00:11]} Qxd7
{[%clk 00:04:26]} {[%emt 00:00:24]} 15. Qe2 {[%clk 00:03:29]} {[%emt 00:00:14]}
Rfd8 {[%clk 00:04:24]} {[%emt 00:00:05]} 16. Nc4 {[%clk 00:03:26]} {[%emt
00:00:06]} Qe8 {[%clk 00:04:18]} {[%emt 00:00:09]} 17. Rad1 {[%clk 00:03:01]}
{[%emt 00:00:28]} Qf8 {[%clk 00:03:39]} {[%emt 00:00:42]} 18. h4 {[%clk
00:02:37]} {[%emt 00:00:27]} b5 {[%clk 00:02:59]} {[%emt 00:00:43]} 19. Ne5
{[%clk 00:02:32]} {[%emt 00:00:09]} Bxa3 {[%clk 00:02:41]} {[%emt 00:00:20]} 20.
Bxa3 {[%clk 00:02:23]} {[%emt 00:00:12]} Qxa3 {[%clk 00:02:43]} {[%emt
00:00:02]} 21. Rxd8+ {[%clk 00:02:14]} {[%emt 00:00:11]} Rxd8 {[%clk 00:02:45]}
{[%emt 00:00:01]} 22. Nxc6 {[%clk 00:02:16]} {[%emt 00:00:02]} Rc8 {[%clk
00:02:45]} {[%emt 00:00:02]} 23. Qxb5 {[%clk 00:02:10]} {[%emt 00:00:09]} Bg6
{[%clk 00:01:17]} {[%emt 00:01:31]} 24. Qb7 {[%clk 00:01:10]} {[%emt 00:01:03]}
Re8 {[%clk 00:01:09]} {[%emt 00:00:11]} 25. Qc7 {[%clk 00:01:03]} {[%emt
00:00:11]} Qc5 {[%clk 00:00:59]} {[%emt 00:00:14]} 26. Re2 {[%clk 00:00:33]}
{[%emt 00:00:32]} Ra8 {[%clk 00:00:35]} {[%emt 00:00:27]} 27. Ne7+ {[%clk
00:00:34]} {[%emt 00:00:02]} Kh7 {[%clk 00:00:37]} 28. Qxc5 {[%clk 00:00:35]}
{[%emt 00:00:01]} 1-0